bitfinex-derivatives/quotes_ETHF0:USTF0_20250904
["timestamp","ask_amount","ask_price","bid_price","bid_amount"]
[1756989278179,0.40932,4396.1,4396.0,3.928]
[1756989278384,0.40932,4396.1,4396.0,0.9672]
[1756989278586,0.40932,4396.1,4396.0,0.247]
[1756989278887,0.40937,4395.6,4395.5,3.928]
[1756989279080,0.40937,4395.6,4395.5,4.175]
[1756989279286,0.40936,4395.7,4395.6,0.7202]
[1756989279487,0.40936,4395.7,4395.6,0.9672]
[1756989279691,0.40934,4395.9,4395.7,0.7202]
[1756989279895,0.40932,4396.1,4395.8,0.246]
[1756989280198,4.2949,4397.3,4396.2,0.7202]
[1756989280399,0.40927,4396.7,4396.6,0.7202]
[1756989280695,0.40927,4396.7,4396.6,0.9662]
[1756989281290,4.2949,4397.3,4396.6,0.9662]
[1756989281485,0.40926,4396.8,4396.7,0.7202]
[1756989281692,1.0871,4397.7,4396.7,0.246]
[1756989281893,0.40923,4397.2,4397.0,3.2078]
[1756989282093,0.40923,4397.2,4397.1,0.9662]
[1756989282288,0.40921,4397.3,4397.1,0.7202]
[1756989282493,0.40922,4397.2,4397.0,3.2078]
[1756989282694,0.40922,4397.2,4397.1,0.9589]
[1756989283095,0.40921,4397.3,4397.2,0.7129]
[1756989283495,0.40921,4397.3,4397.1,0.246]
[1756989283697,0.40923,4397.1,4397.0,3.2078]
[1756989283993,0.40923,4397.1,4397.0,4.1667]
[1756989285196,1.45302,4397.2,4397.0,3.2078]
[1756989285397,0.40927,4396.6,4396.5,3.2078]
[1756989285604,0.40927,4396.6,4396.5,3.4538]
[1756989285799,1.45307,4396.6,4396.5,3.4538]
[1756989286402,0.40932,4396.1,4396.0,3.9207]
[1756989286601,0.40932,4396.1,4396.0,3.2078]
[1756989286898,1.45312,4396.1,4396.0,3.2078]
[1756989287097,1.45312,4396.1,4396.0,3.4538]
[1756989287494,1.45312,4396.1,4396.0,3.4528]
[1756989287794,2.06696,4396.8,4396.1,0.7129]
[1756989287994,0.40931,4396.2,4396.1,0.7129]
[1756989288192,2.06696,4396.8,4396.2,0.7129]
[1756989288193,1.0438,4396.8,4396.2,0.7129]
[1756989288396,1.02317,4396.7,4396.3,0.245]
[1756989288593,0.40929,4396.4,4396.3,0.245]
[1756989289200,1.0438,4396.6,4396.3,0.9579]
[1756989289400,0.40928,4396.5,4396.3,0.245]
[1756989289597,0.40928,4396.6,4396.3,0.245]
[1756989289794,0.40928,4396.6,4396.4,0.7129]
[1756989289993,0.40928,4396.6,4396.5,0.9579]
[1756989290291,4.2516,4397.7,4396.5,4.52400531]
[1756989290490,0.40922,4397.2,4397.1,0.7129]
[1756989290701,0.40922,4397.2,4397.1,0.9579]
[1756989292306,0.4092,4397.4,4397.1,0.245]
[1756989292499,0.4092,4397.4,4397.2,0.7129]
[1756989292803,0.4092,4397.4,4397.3,0.9579]
[1756989293503,1.453,4397.4,4397.3,0.245]
[1756989294005,1.47718,4398.0,4397.3,0.9579]
[1756989294006,0.40919,4397.5,4397.3,0.9579]
[1756989294203,0.40919,4397.5,4397.3,0.245]
[1756989294406,0.40919,4397.5,4397.4,0.7129]
[1756989294712,1.4981,4398.0,4397.4,0.7129]
[1756989294898,0.40917,4397.7,4397.5,0.9579]
[1756989295099,0.40917,4397.7,4397.6,40.8]
[1756989295399,1.4794,4398.5,4397.6,44.7207]
[1756989295604,0.40915,4398.0,4397.7,0.245]
[1756989295805,1.4794,4398.5,4397.7,0.245]
[1756989295806,0.40913,4398.1,4397.8,0.7129]
[1756989295997,0.40913,4398.1,4397.9,0.245]
[1756989296199,0.40913,4398.1,4398.0,0.7129]
[1756989296398,0.40913,4398.1,4397.9,0.245]
[1756989296806,1.45293,4398.1,4398.0,40.8]
[1756989297003,1.02287,4398.0,4397.6,3.2078]
[1756989297204,1.45296,4397.8,4397.7,0.244]
[1756989297899,1.45296,4397.8,4397.7,41.044]
[1756989298602,1.45296,4397.8,4397.7,0.244]
[1756989299107,0.40916,4397.8,4397.7,41.044]
[1756989299302,1.45296,4397.8,4397.7,40.81214275]
[1756989299510,1.45296,4397.8,4397.7,41.05614275]
[1756989300104,0.40916,4397.8,4397.7,41.76904275]
[1756989300414,8.66076,4397.8,4397.7,0.0242855]
[1756989300604,1.45296,4397.8,4397.7,0.2682855]
[1756989300802,1.45296,4397.8,4397.7,0.9811855]
[1756989300803,0.40916,4397.8,4397.7,0.9811855]
[1756989301103,0.40916,4397.8,4397.7,0.9569]
[1756989301310,1.0438,4398.4,4397.7,41.79332825]
[1756989301514,0.40916,4397.9,4397.8,0.7129]
[1756989302008,1.0438,4398.8,4397.8,5.12206]
[1756989302208,0.4091,4398.5,4398.3,3.24422825]
[1756989302513,1.8885,4398.5,4398.4,0.244]
[1756989303413,0.40909,4398.6,4398.4,0.28042825]
[1756989303799,1.0438,4398.5,4398.4,0.28042825]
[1756989304002,0.40909,4398.6,4398.4,0.28042825]
[1756989304204,1.0438,4398.5,4398.4,0.244]
[1756989304422,0.40911,4398.4,4398.3,3.2078]
[1756989304607,0.40911,4398.4,4398.3,0.244]
[1756989305707,1.02282,4398.2,4397.8,3.2078]
[1756989305912,0.4356,4398.0,4397.9,0.244]
[1756989306211,0.4092,4397.4,4397.3,3.2078]
[1756989306511,0.4092,4397.4,4397.3,3.4518]
[1756989306512,1.453,4397.4,4397.3,3.4518]
[1756989306814,1.453,4397.4,4397.3,44.2518]
[1756989307014,1.453,4397.4,4397.3,3.2078]
[1756989307308,4.6608,4397.4,4397.3,0.244]
[1756989307716,0.40923,4397.1,4397.0,31.384]
[1756989307909,1.45303,4397.1,4397.0,31.628]
[1756989308909,1.45303,4397.1,4397.0,31.384]
[1756989309212,0.4093,4396.3,4396.2,1.1299]
[1756989309404,0.4093,4396.3,4396.2,1.3729]
[1756989310213,0.4093,4396.3,4396.2,1.1299]
[1756989310405,0.4093,4396.3,4396.2,1.3729]
[1756989311201,0.4093,4396.3,4396.2,1.1299]
[1756989311406,0.4093,4396.3,4396.2,1.3729]
[1756989311605,0.4093,4396.3,4396.2,4.5807]
[1756989311808,1.02333,4396.1,4395.7,3.2078]
[1756989312115,1.02333,4396.1,4395.5,0.4288]
[1756989312116,0.40937,4395.6,4395.5,3.6366]
[1756989312410,0.40937,4395.6,4395.5,3.8806]
[1756989312614,0.40936,4395.7,4395.5,7.8806]
[1756989312813,0.40937,4395.6,4395.5,3.8806]
[1756989313912,0.40937,4395.6,4395.5,5.0029]
[1756989314101,1.02326,4396.3,4396.0,0.4309]
[1756989314308,1.02321,4396.6,4396.1,3.2078]
[1756989314612,0.40932,4396.1,4396.0,0.4309]
[1756989314910,0.40932,4396.1,4396.0,1.7972]
[1756989316410,0.40931,4396.2,4396.1,1.1223]
[1756989316620,0.40927,4396.7,4396.6,1.1223]
[1756989316818,0.40927,4396.7,4396.6,1.3653]
[1756989319118,0.43242,4396.8,4396.7,1.1223]
[1756989320512,0.43242,4396.8,4396.7,1.3653]
[1756989321311,1.02306,4397.2,4397.0,0.4309]
[1756989321512,0.4092,4397.4,4397.2,1.1223]
[1756989321712,0.4092,4397.4,4397.3,40.8]
[1756989321919,0.4092,4397.4,4397.3,41.9223]
[1756989324716,0.4092,4397.4,4397.3,42.1653]
[1756989324912,5.091,4397.4,4397.3,0.243]
[1756989325112,1.5002,4397.4,4397.3,0.243]
[1756989325313,5.5002,4397.4,4397.3,0.243]
[1756989325915,1.5002,4397.4,4397.3,41.043]
[1756989326220,1.5002,4397.4,4396.8,1.1223]
[1756989326221,0.40925,4396.9,4396.8,1.1223]
[1756989326424,0.40925,4396.9,4396.8,1.3653]
[1756989326720,0.40925,4396.9,4396.8,42.1653]
[1756989327223,1.50025,4396.9,4396.8,41.043]
[1756989327409,1.50025,4396.9,4396.8,42.1643]
[1756989328414,1.50025,4396.9,4396.8,41.042]
[1756989329322,0.40925,4396.9,4396.8,42.1643]
[1756989329719,1.02289,4397.9,4396.8,42.1643]
[1756989330022,0.40921,4397.3,4397.2,4.3301]
[1756989330221,0.40921,4397.3,4397.2,4.5721]
[1756989330619,1.02289,4397.9,4397.3,1.1223]
[1756989330814,0.40916,4397.8,4397.7,4.3301]
[1756989331015,0.40916,4397.8,4397.7,4.5721]
[1756989331427,0.40916,4397.8,4397.7,45.3721]
[1756989334121,0.40916,4397.9,4397.7,44.0078]
[1756989334320,1.091,4397.8,4397.7,41.042]
[1756989335521,1.091,4397.8,4397.7,40.8]
[1756989335721,1.091,4397.8,4396.4,31.38]
[1756989335722,1.091,4396.8,4396.7,3.2078]
[1756989335922,1.0232,4396.6,4396.1,3.2078]
[1756989336123,1.50032,4396.2,4396.1,3.2078]
[1756989336328,0.40933,4396.0,4395.9,1.1223]
[1756989336525,0.40933,4396.0,4395.9,1.3643]
[1756989337020,1.50033,4396.0,4395.9,1.3643]
[1756989337221,1.50035,4395.8,4395.7,32.5003]
[1756989337528,0.40935,4395.8,4395.7,32.7423]
[1756989338023,0.40935,4395.8,4395.7,36.2453249]
[1756989338227,1.02326,4396.4,4395.8,1.1223]
[1756989338427,0.4093,4396.4,4396.3,4.3301]
[1756989338630,0.4093,4396.4,4396.3,4.5721]
[1756989338923,13.43806,4397.4,4396.3,7.4498]
[1756989338924,4.23084,4397.4,4396.3,7.4498]
[1756989339130,0.40923,4397.1,4397.0,1.1223]
[1756989339427,0.40923,4397.1,4397.0,1.3643]
[1756989340224,1.50025,4396.9,4396.8,44.0078]
[1756989340431,1.50025,4396.9,4396.8,44.2498]
[1756989341034,0.40925,4396.9,4396.8,45.3721]
[1756989343529,1.49985,4396.9,4396.8,40.8]
[1756989343729,1.49985,4396.9,4396.8,41.042]
[1756989344526,1.49985,4396.9,4396.8,0.242]
[1756989345528,0.40925,4396.9,4396.8,1.3023]
[1756989346330,1.49985,4396.9,4396.8,0.242]
[1756989347129,1.0906,4396.8,4396.7,72.18]
[1756989347434,1.0906,4396.8,4396.7,72.422]
[1756989348032,5.0906,4396.8,4396.7,72.422]
[1756989348225,0.4279,4396.5,4396.3,3.2078]
[1756989348431,0.40936,4395.7,4395.6,3.2078]
[1756989348641,1.49998,4395.5,4395.4,2.83960699]
[1756989348833,1.49998,4395.5,4395.4,0.242]
[1756989349027,1.92788,4395.5,4395.4,0.242]
[1756989349335,0.40941,4395.2,4395.1,34.5898]
[1756989349532,1.50001,4395.2,4395.1,34.8318]
[1756989350426,1.50001,4395.2,4395.1,75.6318]
[1756989350933,0.40941,4395.2,4395.1,76.6921]
[1756989352332,1.50001,4395.2,4395.1,75.6318]
[1756989352639,1.50001,4395.2,4395.1,76.6921]
[1756989352842,0.40941,4395.2,4395.1,76.6921]
[1756989353136,0.40941,4395.3,4395.2,1.0603]
[1756989353439,0.40941,4395.3,4395.2,4.8053249]
[1756989353949,1.02344,4395.6,4395.2,48.5450249]
[1756989354237,1.02344,4395.6,4395.2,44.5450249]
[1756989354635,0.40938,4395.5,4395.2,44.5450249]
[1756989354937,0.40938,4395.5,4395.3,0.5383]
[1756989355129,0.40936,4395.8,4395.5,0.1289]
[1756989355332,0.40936,4395.8,4395.7,3.5030249]
[1756989355831,0.40936,4395.8,4395.6,3.2078]
[1756989356028,0.40936,4395.8,4395.7,0.242]
[1756989357137,0.40936,4395.8,4395.7,4.242]
[1756989358048,0.40936,4395.8,4395.7,45.042]
[1756989359243,0.20946,4395.8,4395.7,41.042]
[1756989359438,2.11385,4396.4,4395.7,41.042]
[1756989359439,0.4093,4396.4,4396.1,0.0096]
[1756989359640,0.4093,4396.4,4396.3,6.7108249]
[1756989359838,1.4999,4396.4,4396.3,6.7108249]
[1756989360040,1.4999,4396.4,4396.3,3.4498]
[1756989360240,1.4999,4396.4,4396.3,44.2498]
[1756989360441,1.4999,4396.4,4396.3,44.0078]
[1756989360638,1.4999,4396.4,4396.3,44.2498]
[1756989361344,1.4999,4396.4,4396.3,44.0078]
[1756989361538,1.4999,4396.4,4396.3,41.042]
[1756989361738,0.4093,4396.4,4396.3,41.042]
[1756989362134,1.4999,4396.4,4396.3,41.042]
[1756989362445,0.40937,4395.6,4395.5,0.4523]
[1756989362642,0.40937,4395.6,4395.5,0.6943]
[1756989362944,0.4525,4395.5,4395.1,32.4423]
[1756989363149,0.4094,4395.3,4395.2,0.242]
[1756989363334,0.4094,4395.3,4395.2,42.1023]
[1756989363540,0.4094,4395.3,4395.2,45.6053249]
[1756989364338,0.4094,4395.3,4395.2,42.1023]
[1756989365649,0.4094,4395.3,4395.2,41.8603]
[1756989365847,0.4094,4395.3,4395.2,42.1023]
[1756989370641,0.4094,4395.3,4395.2,41.8603]
[1756989370846,0.4094,4395.3,4395.2,1.3023]
[1756989371848,0.4094,4395.3,4395.2,42.1023]
[1756989372441,0.4094,4395.3,4395.2,1.3023]
[1756989372943,0.4094,4395.3,4395.2,42.1023]
[1756989373154,0.4094,4395.3,4395.2,45.6053249]
[1756989373754,1.02339,4395.8,4395.2,49.6053249]
[1756989373955,0.40934,4395.9,4395.8,1.0454]
[1756989374163,0.40934,4395.9,4395.8,1.2874]
[1756989374365,0.40934,4395.9,4395.8,4.4952]
[1756989374549,0.40934,4395.9,4395.8,42.0874]
[1756989374756,0.40934,4395.9,4395.8,45.2952]
[1756989375363,0.40934,4395.9,4395.8,42.0874]
[1756989375860,0.40934,4395.9,4395.8,45.2952]
[1756989376263,1.02329,4396.3,4396.0,0.4229]
[1756989376454,0.40931,4396.3,4396.2,1.0454]
[1756989377366,1.02329,4396.2,4395.8,40.8]
[1756989377562,0.40934,4395.9,4395.8,40.8]
[1756989377961,1.0858,4395.8,4395.0,5.16362]
[1756989378161,0.40939,4395.4,4395.2,0.242]
[1756989379063,0.40939,4395.4,4395.3,40.8]
[1756989379273,0.40939,4395.4,4395.3,41.8454]
[1756989379763,0.40939,4395.4,4395.3,45.3484249]
[1756989381169,0.40936,4395.7,4395.5,0.4229]
[1756989381370,0.40936,4395.7,4395.6,1.2874]
[1756989382067,0.40936,4395.7,4395.6,42.0874]
[1756989384968,0.40939,4395.4,4395.1,31.382]
[1756989385175,0.40941,4395.2,4395.1,31.382]
[1756989385371,1.49521,4395.2,4395.1,31.0697]
[1756989385973,1.49521,4395.2,4395.1,71.8697]
[1756989386158,1.49521,4395.2,4395.1,71.6277]
[1756989386364,1.49521,4395.2,4395.1,29.29194]
[1756989386670,5.49521,4395.2,4395.1,27.95249]
[1756989386868,5.49521,4395.2,4395.1,26.87087]
[1756989387173,5.49521,4395.2,4395.1,26.21518]
[1756989387373,5.49521,4395.2,4395.1,24.43353]
[1756989387564,5.49521,4395.2,4395.1,22.67274]
[1756989388165,0.4096,4393.1,4393.0,1.4683]
[1756989388371,0.4096,4393.1,4393.0,1.00254]
[1756989388570,0.40983,4390.6,4389.9,3.2078]
[1756989388772,0.40988,4390.1,4388.5,0.4229]
[1756989389065,0.40983,4390.7,4390.0,5.6307]
[1756989389269,0.40985,4390.5,4390.1,10.83049145]
[1756989389468,0.40987,4390.3,4390.2,0.243]
[1756989389670,0.40983,4390.7,4390.5,0.4229]
[1756989389968,1.0858,4392.1,4390.7,10.83049145]
[1756989390166,0.40969,4392.1,4392.0,3.2078]
[1756989390370,1.0858,4393.3,4392.0,11.49739145]
[1756989390565,0.40962,4393.0,4392.8,1.0454]
[1756989390765,0.40961,4393.1,4393.0,1.0454]
[1756989390971,0.40959,4393.3,4393.0,0.244]
[1756989391164,0.40968,4392.3,4392.2,4.2532]
[1756989391369,0.40968,4392.3,4392.2,1.2894]
[1756989391568,0.4096,4393.2,4392.3,1.0454]
[1756989391765,0.40962,4393.0,4392.7,1.0454]
[1756989391966,3.2078,4393.5,4392.8,0.245]
[1756989392169,3.2078,4393.5,4392.4,72.2]
[1756989392375,0.40969,4392.1,4392.0,1.0454]
[1756989392566,0.40969,4392.1,4392.0,1.2904]
[1756989392767,3.61742,4393.0,4392.1,1.0454]
[1756989392966,1.0858,4394.3,4393.0,1.0454]
[1756989393164,0.4095,4394.2,4393.9,1.0454]
[1756989393372,0.40946,4394.7,4394.1,10.83049145]
[1756989393572,0.40947,4394.5,4394.2,0.245]
[1756989393777,0.40947,4394.5,4394.4,3.6307]
[1756989393976,0.40947,4394.5,4394.4,15.75159145]
[1756989394174,0.40947,4394.5,4394.4,12.54379145]
[1756989394477,0.40947,4394.5,4394.4,1.0454]
[1756989394668,0.40952,4394.0,4393.9,4.2532]
[1756989394869,4.2936,4395.8,4394.5,1.0454]
[1756989395069,4.2936,4395.8,4394.8,2.55877]
[1756989395070,0.40942,4395.0,4394.8,2.55877]
[1756989395272,0.40947,4394.5,4394.4,1.0454]
[1756989395472,0.40947,4394.5,4394.4,1.2904]
[1756989395866,0.40947,4394.5,4394.3,3.2078]
[1756989396072,0.40947,4394.5,4394.4,0.246]
[1756989396268,0.40954,4393.8,4393.7,4.2532]
[1756989396472,0.40965,4392.6,4392.5,3.2078]
[1756989396672,0.40965,4392.6,4392.5,4.4992]
[1756989396871,0.40965,4392.6,4392.5,15.32969145]
[1756989397575,0.40965,4392.6,4392.5,3.2078]
[1756989397778,0.4097,4392.1,4392.0,3.2078]
[1756989397977,0.4097,4392.1,4392.0,3.4538]
[1756989398173,0.4097,4392.1,4392.0,14.28429145]
[1756989398378,0.40976,4391.5,4391.4,0.4229]
[1756989398578,0.40976,4391.5,4391.4,0.6689]
[1756989398780,0.40975,4391.7,4391.4,15.53204911]
[1756989398979,1.0858,4393.2,4391.6,10.83049145]
[1756989399278,1.0858,4393.2,4391.4,4.70155766]
[1756989399279,0.40971,4392.0,4391.9,3.2078]
[1756989399480,0.40971,4392.0,4391.9,3.4548]
[1756989399678,13.44736,4393.5,4392.5,10.42083145]
[1756989399679,1.02396,4393.4,4392.5,10.42083145]
[1756989399983,0.40964,4392.8,4392.7,1.0454]
[1756989400278,0.40964,4392.8,4392.7,41.8454]
[1756989400478,0.40964,4392.8,4392.7,52.26623145]
[1756989400680,0.40964,4392.8,4392.7,51.46783145]
[1756989401077,0.40964,4392.8,4392.7,51.22083145]
[1756989401272,0.40964,4392.8,4392.7,40.8]
[1756989401476,0.40964,4392.8,4391.5,4.2532]
[1756989401477,0.40975,4391.6,4391.5,4.2532]
[1756989401683,0.40975,4391.6,4391.5,13.62863145]
[1756989401878,0.40975,4391.6,4391.5,13.87563145]
[1756989402076,0.40975,4391.6,4391.5,3.4548]
[1756989402378,0.40977,4391.4,4391.3,31.405]
[1756989402881,0.40977,4391.4,4391.0,4.2532]
[1756989402882,0.40989,4390.1,4390.0,6.3614]
[1756989403276,0.40989,4390.1,4390.0,17.02923145]
[1756989403473,0.40989,4390.1,4390.0,57.58223145]
[1756989403674,0.40989,4390.1,4390.0,4.70146]
[1756989403879,5.53609,4390.1,4390.0,0.50014]
[1756989404074,5.53609,4390.1,4390.0,1e-05]
[1756989404274,10.2487,4389.5,4388.2,3.2078]
[1756989404577,0.41007,4388.1,4387.7,3.2078]
[1756989404872,0.41007,4388.1,4386.2,0.18434138]
[1756989404873,0.41019,4386.8,4386.7,3.2078]
[1756989405072,0.41019,4386.8,4385.0,2.41036]
[1756989405073,1.02534,4387.5,4386.3,31.41]
[1756989405272,1.02534,4387.5,4386.1,10.42083145]
[1756989405273,3.2078,4388.7,4387.4,7.09913145]
[1756989405485,3.2078,4388.9,4388.6,7.09913145]
[1756989405673,0.40999,4389.0,4388.8,7.09913145]
[1756989405874,1.02475,4390.0,4388.7,38.51013145]
[1756989406074,1.1262,4391.3,4390.0,7.09913145]
[1756989406377,0.4099,4390.0,4389.9,31.415]
[1756989406577,1.5361,4390.0,4389.9,31.415]
[1756989406777,0.40987,4390.4,4389.9,41.97193145]
[1756989407081,3.2078,4391.4,4390.3,7.09913145]
[1756989407275,1.1262,4391.0,4390.4,2.69419]
[1756989407473,0.40991,4389.8,4389.7,0.251]
[1756989407676,0.40989,4390.1,4389.7,0.251]
[1756989407873,0.40989,4390.1,4389.9,4.03265766]
[1756989408075,0.40985,4390.5,4390.0,7.35013145]
[1756989408276,0.40985,4390.5,4390.4,3.2078]
[1756989408481,0.40985,4390.5,4390.4,0.251]
[1756989408771,0.40985,4390.5,4390.4,10.55793145]
[1756989408972,1.53609,4390.0,4389.9,3.2078]
[1756989409173,1.53609,4390.0,4389.9,0.251]
[1756989409789,1.1262,4389.9,4389.8,31.417]
[1756989409984,0.40989,4390.1,4389.9,7.09913145]
[1756989410384,1.53609,4390.1,4390.0,48.15013145]
[1756989410579,3.2078,4390.5,4390.0,41.051]
[1756989410781,0.40982,4390.8,4390.4,10.30693145]
[1756989410982,1.6401,4391.1,4390.5,0.251]
[1756989411284,1.6401,4391.1,4390.5,7.35013145]
[1756989411475,0.4098,4391.1,4390.6,7.09913145]
[1756989411674,0.40976,4391.5,4391.0,7.09913145]
[1756989411883,0.40976,4391.5,4391.4,3.2078]
[1756989412082,0.40976,4391.5,4391.4,3.4588]
[1756989412280,0.40973,4391.8,4391.4,10.55793145]
[1756989412480,1.1262,4392.5,4391.7,7.09913145]
[1756989412790,3.2078,4392.8,4392.4,7.09913145]
[1756989412985,0.40964,4392.7,4392.5,0.251]
[1756989413293,3.2078,4394.0,4392.7,7.09913145]
[1756989413586,1.02386,4393.8,4392.8,3.4588]
[1756989413890,1.02388,4393.7,4392.9,7.09913145]
[1756989414092,0.40961,4393.1,4393.0,0.251]
[1756989414492,0.40961,4393.1,4393.0,7.35013145]
[1756989414690,0.40961,4393.1,4393.0,47.89913145]
[1756989414888,0.40961,4393.1,4393.0,48.15013145]
[1756989415186,0.40975,4391.5,4391.4,3.2078]
[1756989415382,0.40975,4391.5,4391.4,8.25273145]
[1756989415576,0.40975,4391.5,4391.4,49.05273145]
[1756989415986,0.40975,4391.5,4391.4,49.30673145]
[1756989417081,0.40975,4391.5,4391.4,41.9536]
[1756989417283,0.40975,4391.5,4391.4,42.2086]
[1756989417485,0.40975,4391.5,4391.4,42.2076]
[1756989417687,1.10545635,4391.5,4391.4,42.2076]
[1756989417987,1.10545635,4391.5,4391.4,1.4076]
[1756989418488,1.10545635,4391.5,4391.4,1.1536]
[1756989418692,1.10545635,4391.5,4391.4,1.4076]
[1756989418991,1.10545635,4391.5,4391.4,4.6154]
[1756989418992,0.40975,4391.5,4391.4,4.6154]
[1756989419191,0.40975,4391.5,4391.4,4.3614]
[1756989419394,0.40975,4391.5,4391.4,4.6154]
[1756989419892,0.40975,4391.5,4391.4,5.1159]
[1756989420281,3.2078,4392.4,4391.5,1.1536]
[1756989420491,3.2078,4392.4,4391.4,51.86143145]
[1756989420492,4.23188,4392.9,4392.2,7.09913145]
[1756989420687,0.4097,4392.1,4392.0,0.5005]
[1756989420988,0.40969,4392.3,4392.2,1.1536]
[1756989421191,0.40967,4392.4,4392.3,1.1536]
[1756989421488,1.1262,4394.8,4393.5,3.89133145]
[1756989421683,0.5139,4395.0,4393.9,3.2078]
[1756989421684,0.40951,4394.2,4393.9,3.2078]
[1756989421884,1.02369,4394.5,4394.1,1.1536]
[1756989422091,0.4095,4394.2,4394.1,3.89133145]
[1756989422290,0.4095,4394.2,4394.1,0.254]
[1756989422588,0.4095,4394.3,4394.1,1.4076]
[1756989422791,3.2078,4395.9,4394.4,0.5005]
[1756989422991,0.40941,4395.2,4395.0,0.5005]
[1756989423183,0.40941,4395.2,4395.1,8.50673145]
[1756989423590,0.40941,4395.2,4395.1,4.6154]
[1756989423888,0.40936,4395.8,4395.2,1.1536]
[1756989424085,0.40934,4396.0,4395.8,1.1536]
[1756989424387,3.2078,4397.2,4396.0,1.6541]
[1756989424586,1.02311,4397.0,4396.6,3.2078]
[1756989424791,0.40927,4396.7,4396.6,8.25273145]
[1756989424997,0.40927,4396.7,4396.6,4.6154]
[1756989426495,0.40927,4396.7,4396.6,45.4154]
[1756989426697,1.02294,4397.8,4396.7,0.5005]
[1756989426899,0.40924,4397.0,4396.8,1.4076]
[1756989427105,1.0229,4397.9,4397.0,1.1536]
[1756989427296,0.40916,4397.9,4397.8,3.2078]
[1756989427500,0.40917,4397.8,4397.2,3.2078]
[1756989427692,0.40917,4397.7,4397.3,0.254]
[1756989427898,0.40917,4397.8,4397.4,1.1536]
[1756989427899,0.40919,4397.5,4397.4,1.1536]
[1756989428093,0.40919,4397.5,4397.4,5.54543145]
[1756989428598,3.2078,4398.4,4397.5,1.1536]
[1756989428893,0.40919,4397.6,4397.5,5.04493145]
[1756989429093,0.40919,4397.6,4397.5,4.6144]
[1756989429301,0.40919,4397.6,4397.5,8.50573145]
[1756989429699,1.02274,4398.6,4397.5,8.50573145]
[1756989429890,0.4091,4398.5,4398.1,1.1536]
[1756989430090,0.40912,4398.3,4398.2,0.253]
[1756989430502,1.53532,4398.3,4398.2,40.8]
[1756989430692,0.40912,4398.3,4398.2,41.053]
[1756989430995,0.40912,4398.3,4398.2,42.2066]
[1756989431992,0.40912,4398.3,4398.2,41.053]
[1756989432300,0.40912,4398.3,4398.2,46.09793145]
[1756989432794,0.40912,4398.3,4398.2,41.053]
[1756989433101,0.40912,4398.3,4398.2,46.10893145]
[1756989434694,0.17,4398.9,4398.5,0.5309]
[1756989434901,0.17,4398.9,4398.8,8.26373145]
[1756989435095,0.57906,4398.9,4398.8,8.51573145]
[1756989435296,0.57906,4398.9,4398.8,4.6244]
[1756989435696,0.57906,4398.9,4398.8,45.4244]
[1756989436391,0.57906,4398.9,4398.8,43.54499]
[1756989436587,1.84596,4398.9,4398.8,42.92349]
[1756989436787,0.40912,4398.3,4398.2,34.5918]
[1756989436992,0.40912,4398.3,4398.2,36.0084]
[1756989437201,0.40912,4398.3,4398.2,39.89973145]
[1756989437899,0.40912,4398.3,4398.2,80.69973145]
[1756989438696,0.40912,4398.3,4398.2,80.44773145]
[1756989438909,0.40912,4398.3,4398.2,80.69973145]
[1756989440900,0.40912,4398.3,4398.2,80.69873145]
[1756989441099,0.40912,4398.3,4398.2,80.44773145]
[1756989441297,0.40912,4398.3,4398.2,80.69873145]
[1756989441499,0.40912,4398.3,4398.2,80.44773145]
[1756989441703,0.40912,4398.3,4398.2,80.69873145]
[1756989442598,0.40912,4398.3,4398.2,80.44773145]
[1756989442800,0.40912,4398.3,4398.2,80.69873145]
[1756989443506,0.40912,4398.3,4398.2,79.53413145]
[1756989443806,0.40912,4398.3,4398.2,38.73413145]
[1756989444004,0.40912,4398.3,4398.2,39.89873145]
[1756989444904,0.40912,4398.3,4398.2,43.92488626]
[1756989445401,0.40912,4398.3,4398.2,39.64773145]
[1756989445607,0.40912,4398.3,4398.2,39.89873145]
[1756989446004,1.02269,4398.8,4398.5,0.5309]
[1756989446206,0.40908,4398.7,4398.6,1.4156]
[1756989446410,0.17,4398.9,4398.6,4.14233145]
[1756989446599,1.0226,4399.3,4398.6,4.14233145]
[1756989446600,1.0225,4399.7,4398.9,1.1646]
[1756989446800,0.40903,4399.3,4399.2,1.1646]
[1756989447000,0.40903,4399.3,4399.2,4.91604483]
[1756989447201,0.40903,4399.3,4399.2,8.80737628]
[1756989447398,0.40903,4399.3,4399.2,49.60737628]
[1756989447808,0.40901,4399.5,4399.3,1.1646]
[1756989448004,0.40899,4399.8,4399.5,1.1646]
[1756989448205,1.02232,4400.4,4399.8,0.7867]
[1756989448406,1.06390319,4400.3,4400.2,3.50144483]
[1756989448608,1.06390319,4400.3,4400.2,4.53814483]
[1756989448806,0.40893,4400.3,4400.2,11.63727628]
[1756989449607,1.02223,4400.8,4400.2,52.18727628]
[1756989449914,0.40893,4400.4,4400.3,4.51913145]
[1756989450114,0.40893,4400.4,4400.3,3.8356]
[1756989451112,0.63805076,4400.4,4400.3,3.8356]
[1756989451307,1.04698076,4400.4,4400.3,3.8356]
[1756989451706,0.40893,4400.4,4400.3,3.8356]
[1756989452300,1.2669,4401.1,4400.3,3.8356]
[1756989452605,0.40886,4401.1,4401.0,7.39277628]
[1756989452811,1.67576,4401.1,4401.0,7.64177628]
[1756989453507,1.2669,4400.6,4400.4,3.2078]
[1756989453713,1.67582,4400.5,4400.4,3.2078]